[Event "TUR-ch Veterans 2019"]
[Site "Belek"]
[Date "2019.01.25"]
[Round "6.4"]
[White "Korkmaz, Turhan"]
[Black "Bozkir, Dursun Murat"]
[Result "1-0"]
[ECO "B22"]
[WhiteElo "1977"]
[BlackElo "1684"]
[Annotator "NA RC"]
[PlyCount "73"]
[EventDate "2019.01.20"]
[EventType "swiss"]
[EventCountry "TUR"]
[SourceTitle "playchess.com"]
[Source "ChessBase"]
[SourceQuality "1"]
[TimeControl "5400+30"]

{[%evp 16,61,-43,-50,12,-8,-2,-1,-6,-19,-26,0,4,32767,32767,0,0,-33,32767,-14,-29,32767,47,29,105,85,460,425,442,486,415,456,32767,456,472,448,451,32767,448,458,490,32767,32767,32767,32767,32767,32767,531]} 1. e4 {[%emt 0:00:30]} c5 {[%emt 0:00:30]} 2. c3 {[%emt 0:00:30]} d5 {[%emt 0:00:00]} 3. exd5 {[%emt 0:00:00]} Qxd5 {[%emt 0:01:00]} 4. Nf3 {[%emt 0:00:00]} Bg4 {[%emt 0:01:30]} 5. Be2 {[%emt 0:00:30] B22: Sicilian: 2 c3} Nc6 {[%emt 0:00:00]} 6. Na3 {[%emt 0:00:30]} e5 {[%emt 0:01:00]} (6... Nf6 7. d3 e6 8. Nc4 Qd7 9. Qb3 Bxf3 10. Bxf3 Nd5 11. Bg5 Rc8 12. O-O Be7 13. Bxe7 Kxe7 {1-0 (49) Emms,J (2488)-Benjamin,J (2544) Dresden 2018}) 7. Nb5 {[%emt 0:03:30]} Rc8 {[%emt 0:02:30]} 8. c4 $146 {[%emt 0:04:30]} ({You set blue moves yourself with the critical opening position annotation.:} 8. d3 Nf6 9. O-O Be7 10. h3 Bh5 11. d4 cxd4 12. g4 Nxg4 13. Nfxd4 Nxf2 14. Rxf2 Bxe2 15. Rxe2 exd4 16. Nxd4 {0-1 (29) Woestmann,U (1950)-Doennebrink,E (1986) Germany 2010}) 8... Qd7 {[%emt 0:04:30]} 9. h3 {[%emt 0:00:30]} Bxf3 {[%emt 0:00:00]} 10. Bxf3 {[%emt 0:00:00]} a6 {[%emt 0:01:00]} 11. Nc3 {[%emt 0:00:00]} Nd4 {[%emt 0:04:30]} 12. Nd5 {[%emt 0:00:30]} Nxf3+ {[%emt 0:00:30]} 13. Qxf3 {[%emt 0:02:30]} Rc6 {[%emt 0:00:30]} 14. O-O {[%emt 0:01:30]} Ne7 {[%emt 0:00:30]} 15. Re1 {[%emt 0:01:30]} f6 {[%emt 0:02:30]} 16. Ne3 {[%emt 0:11:30]} g6 {[%emt 0:01:30]} 17. d3 {[%emt 0:01:30]} Bg7 {[%emt 0:00:30]} 18. b4 {[%emt 0:06:30]} f5 {[%emt 0:07:30]} ({Inferior is} 18... Qxd3 19. Rd1 $16) (18... cxb4 $11 19. Bb2 O-O) 19. Rb1 {[%emt 0:01:30]} Qxd3 {[%emt 0:01:30]} ({Black should try} 19... Rb6 $14) 20. Rb3 {[%emt 0:00:30]} e4 $2 {[%emt 0:04:30]} (20... Qd7 $16) 21. Rxd3 {[%emt 0:01:30]} exf3 {[%emt 0:00:30]} 22. Nd5 {[%emt 0:00:30]} Bf6 {[%emt 0:03:30]} 23. Rde3 {[%emt 0:02:30]} O-O {[%emt 0:01:30]} 24. Nxe7+ {[%emt 0:00:00]} ({Resist} 24. Rxe7 Bxe7 25. Nxe7+ Kf7 $18) 24... Bxe7 {[%emt 0:00:30]} 25. Rxe7 {[%emt 0:00:00]} Rf7 {[%emt 0:00:30]} 26. Bh6 {[%emt 0:00:30]} Rxe7 {[%emt 0:00:30]} 27. Rxe7 {[%emt 0:00:30]} cxb4 {[%emt 0:00:30]} 28. Rg7+ {[%emt 0:00:30]} Kf8 {[%emt 0:01:30]} 29. Rxb7+ {[%emt 0:00:00]} Ke8 {[%emt 0:00:00]} 30. Rxb4 {[%emt 0:00:00]} fxg2 {[%emt 0:00:00]} 31. h4 $18 {[%emt 0:01:30]} a5 {[%emt 0:00:30]} 32. Ra4 {[%emt 0:00:00]} Kf7 {[%emt 0:03:30]} 33. Bd2 {[%emt 0:01:00]} Ke6 {[%emt 0:00:30]} 34. Kxg2 {[%emt 0:00:00]} Ke5 {[%emt 0:00:00]} 35. Bc3+ {[%emt 0:00:00]} Ke4 {[%emt 0:00:00]} 36. Bxa5 {[%emt 0:01:30]} Kd3 {[%emt 0:01:30]} 37. Ra3+ {[%emt 0:01:30]} 1-0

[Event "TUR-ch Veterans 2019"]
[Site "Belek"]
[Date "2019.01.25"]
[Round "6.5"]
[White "Ozkoc, Ali"]
[Black "Onem, Cem"]
[Result "0-1"]
[ECO "D00"]
[WhiteElo "1773"]
[BlackElo "1840"]
[Annotator "NA"]
[PlyCount "96"]
[EventDate "2019.01.20"]
[EventType "swiss"]
[EventCountry "TUR"]
[SourceTitle "playchess.com"]
[Source "ChessBase"]
[SourceQuality "1"]
[TimeControl "5400+30"]

1. d4 {[%emt 0:00:30]} d5 {[%emt 0:00:30]} 2. Bf4 {[%emt 0:00:00]} e6 {[%emt 0:00:00]} 3. e3 {[%emt 0:00:00]} c5 {[%emt 0:00:00]} 4. c3 {[%emt 0:00:30]} Nf6 {[%emt 0:00:30]} 5. Nd2 {[%emt 0:00:00]} Bd6 {[%emt 0:00:30]} 6. Bg5 {[%emt 0:01:00] D00: 1 d4 d5: Unusual lines} (6. Bb5+ Nc6 7. Bg3 Bxg3 8. hxg3 Qd6 9. g4 e5 10. dxe5 Qxe5 11. Ngf3 Qe7 12. g5 Ne4 13. Bxc6+ bxc6 {0-1 (31) Naiditsch,A (2705)-Inarkiev,E (2689) Riadh 2017}) 6... cxd4 {[%emt 0:03:30]} 7. exd4 {[%emt 0:00:30]} O-O $146 {[%emt 0:00:30]} ({Predecessor:} 7... h6 8. Bh4 Qc7 9. Qf3 Nbd7 10. Bb5 Bf4 11. Bxf6 gxf6 {1-0 (26) Spahn,A (1907)-Fresser,F (1623) Hanau 2015}) 8. Ngf3 {[%emt 0:00:30]} h6 {[%emt 0:01:30]} 9. Bh4 {[%emt 0:00:00]} Nbd7 {[%emt 0:00:30]} 10. Bd3 {[%emt 0:01:00]} a6 {[%emt 0:03:30]} 11. O-O {[%emt 0:00:30]} b5 {[%emt 0:00:30]} 12. Re1 {[%emt 0:01:30]} g5 {[%emt 0:05:30]} (12... Qc7 $14) 13. Bg3 {[%emt 0:00:00]} Bxg3 {[%emt 0:00:30]} 14. hxg3 {[%emt 0:00:00]} Bb7 {[%emt 0:01:30]} 15. Bc2 {[%emt 0:04:30]} Ng4 {[%emt 0:32:30]} 16. Nf1 {[%emt 0:05:30]} Qf6 {[%emt 0:09:30]} 17. Ne3 {[%emt 0:03:30]} Nxe3 {[%emt 0:01:30]} 18. Rxe3 {[%emt 0:00:30]} Rfe8 {[%emt 0:00:30]} (18... Qg7 $14) 19. Ne5 {[%emt 0:07:30]} Nxe5 {[%emt 0:02:30]} 20. Rxe5 {[%emt 0:00:30]} Qg7 {[%emt 0:00:30]} 21. Qg4 {[%emt 0:01:30]} Bc8 {[%emt 0:01:30]} 22. Rae1 {[%emt 0:04:30]} Bd7 {[%emt 0:00:00]} 23. Qh5 {[%emt 0:08:30]} f6 {[%emt 0:02:00]} 24. R5e3 $16 {[%emt 0:00:30]} e5 {[%emt 0:07:30]} 25. dxe5 {[%emt 0:02:30]} Rxe5 {[%emt 0:01:30]} 26. Bb3 {[%emt 0:01:30]} Bc6 {[%emt 0:00:30]} 27. Rxe5 {[%emt 0:02:30]} fxe5 {[%emt 0:00:30]} 28. Qf3 {[%emt 0:00:30]} Rd8 {[%emt 0:01:30]} 29. Qf5 {[%emt 0:00:30]} Re8 {[%emt 0:00:30]} 30. Rd1 {[%emt 0:01:30]} Qf7 {[%emt 0:09:49]} 31. Qxf7+ {[%emt 0:02:30]} Kxf7 {[%emt 0:00:06]} 32. Bxd5+ {[%emt 0:00:30]} Bxd5 {[%emt 0:00:04]} 33. Rxd5 {[%emt 0:00:30]} Ke6 {[%emt 0:00:24]} 34. Rd2 {[%emt 0:00:30]} Rc8 {[%emt 0:01:48]} 35. g4 {[%emt 0:01:30]} Rc4 {[%emt 0:03:12]} 36. Rd8 {[%emt 0:04:30]} Rxg4 {[%emt 0:03:08]} 37. Rh8 {[%emt 0:02:30]} Ra4 {[%emt 0:01:27]} 38. Rxh6+ {[%emt 0:00:00]} Kd5 {[%emt 0:00:33]} 39. Rg6 {[%emt 0:08:00]} Rxa2 {[%emt 0:02:52]} 40. Rxg5 {[%emt 0:04:30]} Rxb2 {[%emt 0:00:13]} 41. Rg6 {[%emt 0:00:30]} a5 {[%emt 0:01:27]} 42. Ra6 {[%emt 0:00:30]} a4 {[%emt 0:00:05]} 43. g4 {[%emt 0:00:00]} Kc4 {[%emt 0:01:23]} 44. Rc6+ {[%emt 0:04:00]} Kd3 {[%emt 0:01:19]} 45. g5 {[%emt 0:03:30]} a3 {[%emt 0:00:07]} 46. Ra6 {[%emt 0:00:30]} a2 {[%emt 0:00:06]} 47. Kg2 {[%emt 0:00:30]} Kxc3 {[%emt 0:00:30]} 48. g6 {[%emt 0:00:30]} Rb4 {[%emt 0:01:24]} 0-1

[Event "TUR-ch Veterans 2019"]
[Site "Belek"]
[Date "2019.01.25"]
[Round "6.6"]
[White "Uzuner, Tufan Can"]
[Black "Marthedal, Anton Mehmet Yildiz"]
[Result "1-0"]
[ECO "B38"]
[WhiteElo "1889"]
[BlackElo "1885"]
[Annotator "NA"]
[PlyCount "113"]
[EventDate "2019.01.20"]
[EventType "swiss"]
[EventCountry "TUR"]
[SourceTitle "playchess.com"]
[Source "ChessBase"]
[SourceQuality "1"]
[TimeControl "5400+30"]

1. Nf3 {[%emt 0:00:30]} c5 {[%emt 0:00:30]} 2. c4 {[%emt 0:00:00]} Nf6 {[%emt 0:01:30]} 3. Nc3 {[%emt 0:00:00]} Nc6 {[%emt 0:00:30]} 4. d4 {[%emt 0:00:30]} cxd4 {[%emt 0:01:30]} 5. Nxd4 {[%emt 0:00:30]} g6 {[%emt 0:00:00]} 6. e4 {[%emt 0:01:30]} d6 {[%emt 0:01:00]} 7. Be2 {[%emt 0:00:30]} Bg7 {[%emt 0:00:30]} 8. Be3 {[%emt 0:00:00]} Bd7 {[%emt 0:00:30]} 9. O-O {[%emt 0:03:00]} a6 {[%emt 0:02:30] B38: Sicilian: Maroczy Bind with 5...Bg7 and 7...0-0} (9... O-O 10. f3 Qb6 11. Na4 Qa5 12. Nb5 Rfc8 13. Rc1 Ne5 14. b3 Be8 15. Qe1 Qxe1 16. Rfxe1 Nc6 17. Red1 Nd7 18. f4 b6 19. Bg4 h5 {0-1 (66) Neiksans,A (2582)-Kovalenko,I (2635) Tallinn 2018}) 10. f3 {[%emt 0:04:30]} Rc8 {[%emt 0:02:30]} 11. Qd2 {[%emt 0:01:30] LiveBook: 4 Games} h5 {[%emt 0:00:30]} 12. Rac1 {[%emt 0:04:30]} h4 {[%emt 0:05:30]} 13. Rfd1 {[%emt 0:05:30]} h3 {[%emt 0:01:30]} 14. g3 {[%emt 0:00:30]} Ne5 {[%emt 0:02:30]} 15. Nd5 {[%emt 0:05:30]} Nh5 $2 $146 {[%emt 0:22:30]} ({Better is Predecessor:} 15... O-O $14 16. Qb4 Nc6 17. Nxc6 bxc6 {1-0 (67) Baikov,V (2380)-Motyliov,A Yerevan 1983}) 16. Nb3 {[%emt 0:07:30]} Bc6 {[%emt 0:09:30]} 17. Bb6 {[%emt 0:19:30]} Qd7 {[%emt 0:00:30]} 18. Bd4 {[%emt 0:00:30]} (18. f4 $18) 18... Qe6 $18 {[%emt 0:16:30]} (18... Bxd5 $16 19. exd5 (19. cxd5 O-O $16) 19... O-O) 19. Be3 {[%emt 0:16:30]} Nf6 {[%emt 0:09:30]} 20. Nd4 {[%emt 0:03:30]} Qd7 {[%emt 0:02:11]} 21. Nb6 {[%emt 0:00:30]} Qd8 {[%emt 0:01:48]} 22. Nxc8 {[%emt 0:00:00]} Qxc8 {[%emt 0:00:29]} 23. Nxc6 {[%emt 0:00:00]} bxc6 {[%emt 0:08:29]} 24. Bf4 {[%emt 0:12:36]} Nfd7 {[%emt 0:02:07]} 25. Rc2 {[%emt 0:01:11]} c5 {[%emt 0:01:51]} 26. Qe3 {[%emt 0:03:25]} Nc6 {[%emt 0:00:17]} 27. Qa3 {[%emt 0:01:11]} Nd4 {[%emt 0:00:44]} 28. Rcd2 {[%emt 0:00:48]} g5 {[%emt 0:02:14]} 29. Bxg5 {[%emt 0:02:05]} Ne5 {[%emt 0:01:04]} 30. Rf1 {[%emt 0:02:22]} Qc6 {[%emt 0:00:59]} 31. Be3 {[%emt 0:01:24]} Nxe2+ {[%emt 0:00:15]} 32. Rxe2 {[%emt 0:00:11]} Nxc4 {[%emt 0:00:16]} 33. Qb3 {[%emt 0:01:00]} Nxe3 {[%emt 0:00:49]} 34. Rxe3 {[%emt 0:00:05]} Bd4 {[%emt 0:00:17]} 35. Kh1 {[%emt 0:00:16]} Bxe3 {[%emt 0:01:16]} 36. Qb8+ {[%emt 0:00:18]} Kd7 {[%emt 0:00:35]} 37. Qxh8 {[%emt 0:00:03]} Qb5 {[%emt 0:00:00]} 38. Qxh3+ {[%emt 0:00:15]} e6 {[%emt 0:00:11]} 39. Qg2 {[%emt 0:00:16]} Qa5 {[%emt 0:00:32]} 40. Qe2 {[%emt 0:00:30]} Bd4 {[%emt 0:00:39]} 41. b3 {[%emt 0:00:30]} Qa3 {[%emt 0:00:40]} 42. Kg2 {[%emt 0:00:14]} d5 {[%emt 0:00:57]} 43. exd5 {[%emt 0:00:47]} exd5 {[%emt 0:00:02]} 44. Re1 {[%emt 0:00:51]} Kc6 {[%emt 0:01:28]} 45. Qe8+ {[%emt 0:01:11]} Kb6 {[%emt 0:00:02]} 46. Re2 {[%emt 0:01:51]} Qc1 {[%emt 0:00:08]} 47. Re1 {[%emt 0:02:49]} Qc2+ {[%emt 0:00:50]} 48. Qe2 {[%emt 0:00:04]} Qf5 {[%emt 0:00:16]} 49. Rd1 {[%emt 0:00:28]} Bf6 {[%emt 0:01:20]} 50. Qd2 {[%emt 0:00:19]} d4 {[%emt 0:00:55]} 51. Qd3 {[%emt 0:00:05]} Qd7 {[%emt 0:01:15]} 52. h4 {[%emt 0:00:21]} Qb5 {[%emt 0:00:26]} 53. a4 {[%emt 0:00:17]} Qe8 {[%emt 0:00:55]} 54. Rd2 {[%emt 0:00:50]} Qg8 {[%emt 0:00:28]} 55. Qe4 {[%emt 0:01:20]} Ka5 {[%emt 0:00:29]} 56. Qf5 {[%emt 0:00:27]} Be7 {[%emt 0:00:34]} 57. Rxd4 {[%emt 0:00:14]} 1-0

[Event "TUR-ch Veterans 2019"]
[Site "Belek"]
[Date "2019.01.25"]
[Round "6.7"]
[White "Guner, Bulent"]
[Black "Taskiran, Erol"]
[Result "1/2-1/2"]
[ECO "D46"]
[WhiteElo "1987"]
[BlackElo "1758"]
[Annotator "NA"]
[PlyCount "131"]
[EventDate "2019.01.20"]
[EventType "swiss"]
[EventCountry "TUR"]
[SourceTitle "playchess.com"]
[Source "ChessBase"]
[SourceQuality "1"]
[TimeControl "5400+30"]

1. d4 {[%emt 0:00:30]} Nf6 {[%emt 0:01:30]} 2. Nf3 {[%emt 0:00:00]} d5 {[%emt 0:00:30]} 3. c4 {[%emt 0:00:00]} e6 {[%emt 0:02:30]} 4. Nc3 {[%emt 0:00:30]} c6 {[%emt 0:01:30]} 5. e3 {[%emt 0:00:30]} Nbd7 {[%emt 0:07:30]} 6. Bd3 {[%emt 0:01:30]} c5 {[%emt 0:03:30]} 7. O-O {[%emt 0:03:30]} Be7 {[%emt 0:06:30]} 8. b3 {[%emt 0:04:30]} O-O {[%emt 0:01:30]} 9. Bb2 {[%emt 0:00:30] D46: Semi-Slav: 5 e3 Nbd7 6 Bd3, Black avoids the Meran} b6 {[%emt 0:05:30]} 10. Rc1 {[%emt 0:03:30]} Bb7 {[%emt 0:02:30] LiveBook: 4 Games} 11. Qe2 {[%emt 0:01:30]} Rc8 {[%emt 0:02:30]} 12. Rfd1 {[%emt 0:01:30]} h6 {[%emt 0:08:30]} 13. cxd5 {[%emt 0:04:30]} Nxd5 $146 {[%emt 0:01:30]} ({Predecessor:} 13... exd5 14. Bf5 g6 15. Bh3 a6 16. Ne5 cxd4 17. exd4 Rc7 18. Qf3 Nb8 19. Ne2 {1-0 (29) Peralta,F (2606)-Anguera Maestro,J (2153) La Pobla de Lillet 2012}) 14. Nxd5 {[%emt 0:01:30]} exd5 {[%emt 0:00:30]} 15. Bf5 {[%emt 0:03:30]} Rc7 {[%emt 0:08:30]} 16. h3 {[%emt 0:06:30]} Bf6 {[%emt 0:05:30]} 17. Bb1 {[%emt 0:04:30]} cxd4 {[%emt 0:03:30]} 18. Nxd4 {[%emt 0:02:30]} Ne5 {[%emt 0:08:30]} (18... Rxc1 $14 19. Rxc1 g6) 19. Rxc7 {[%emt 0:01:30]} Qxc7 {[%emt 0:00:30]} 20. Rc1 {[%emt 0:00:30]} Qd8 {[%emt 0:05:30]} (20... Qd7 $16) 21. Qc2 {[%emt 0:02:30]} (21. Ba3 $142) 21... Ng6 {[%emt 0:01:30]} 22. Nf5 {[%emt 0:05:30]} Bxb2 {[%emt 0:03:02]} (22... Re8 $16) 23. Qxb2 $18 {[%emt 0:01:30]} d4 {[%emt 0:02:28]} 24. Qxd4 {[%emt 0:00:30]} Qxd4 {[%emt 0:02:24]} 25. Nxd4 {[%emt 0:01:30]} Ne5 {[%emt 0:05:48]} 26. Rc7 {[%emt 0:06:30]} Rc8 {[%emt 0:00:55]} 27. Rxc8+ {[%emt 0:01:30]} Bxc8 {[%emt 0:00:14]} 28. f4 {[%emt 0:00:30]} Nd7 {[%emt 0:01:11]} 29. Bf5 {[%emt 0:00:30]} g6 {[%emt 0:00:00]} 30. Nc6 {[%emt 0:01:30]} gxf5 {[%emt 0:02:09]} 31. Ne7+ {[%emt 0:01:30]} Kg7 {[%emt 0:01:13]} 32. Nxc8 {[%emt 0:00:30]} a5 {[%emt 0:01:51]} 33. Kf2 {[%emt 0:02:30]} Kf6 {[%emt 0:00:10]} 34. Nd6 {[%emt 0:02:30]} Nc5 {[%emt 0:04:19]} 35. Kf3 {[%emt 0:05:30]} a4 {[%emt 0:00:34]} 36. b4 {[%emt 0:01:30]} Nd3 {[%emt 0:00:33]} 37. b5 {[%emt 0:00:30]} a3 {[%emt 0:00:24]} 38. Nc4 {[%emt 0:03:30]} Nb4 {[%emt 0:00:15]} 39. Nxa3 {[%emt 0:02:30]} Nxa2 {[%emt 0:00:07]} 40. Nc2 {[%emt 0:00:30]} Nc3 {[%emt 0:00:34]} 41. Nd4 {[%emt 0:02:30]} h5 {[%emt 0:00:55]} 42. g3 {[%emt 0:00:00]} Kg6 {[%emt 0:00:31]} 43. g4 {[%emt 0:03:41]} hxg4+ {[%emt 0:00:35]} 44. hxg4 {[%emt 0:00:10]} fxg4+ {[%emt 0:00:25]} 45. Kxg4 {[%emt 0:00:19]} f6 {[%emt 0:01:16]} 46. f5+ {[%emt 0:01:10]} Kf7 {[%emt 0:00:45]} 47. Kf4 {[%emt 0:03:05]} Ke7 {[%emt 0:00:14]} 48. e4 {[%emt 0:13:14]} Kd6 {[%emt 0:00:22]} 49. Ke3 {[%emt 0:00:13]} Ke5 {[%emt 0:00:43]} 50. Nc6+ {[%emt 0:01:05]} Kd6 {[%emt 0:00:07]} 51. Nd4 {[%emt 0:00:41]} Ke5 {[%emt 0:00:09]} 52. Nf3+ {[%emt 0:01:17]} Kd6 {[%emt 0:00:19]} 53. Kf4 {[%emt 0:00:59]} Nxb5 {[%emt 0:00:32]} 54. e5+ {[%emt 0:00:40]} fxe5+ {[%emt 0:00:29]} 55. Nxe5 {[%emt 0:00:00]} Nc7 {[%emt 0:00:18]} 56. Nc4+ {[%emt 0:00:00]} Ke7 {[%emt 0:01:26]} 57. Nxb6 {[%emt 0:00:19]} Kf7 {[%emt 0:00:29]} 58. Ke5 {[%emt 0:00:13]} Ne8 {[%emt 0:00:20]} 59. Nc4 {[%emt 0:00:41]} Kf8 {[%emt 0:00:50]} 60. Nd6 {[%emt 0:00:40]} Nxd6 {[%emt 0:00:30]} 61. Kxd6 {[%emt 0:00:34]} Kf7 {[%emt 0:00:00]} 62. Ke5 {[%emt 0:00:00]} Ke7 {[%emt 0:00:16]} 63. f6+ {[%emt 0:00:00]} Kf7 {[%emt 0:00:02]} 64. Kf5 {[%emt 0:00:02]} Kf8 {[%emt 0:00:19]} 65. Ke5 {[%emt 0:00:14]} Kf7 {[%emt 0:00:14]} 66. Ke4 {[%emt 0:01:17]} 1/2-1/2

[Event "TUR-ch Veterans 2019"]
[Site "Belek"]
[Date "2019.01.25"]
[Round "6.8"]
[White "Altinok, Metin"]
[Black "Tozaki, Halil"]
[Result "0-1"]
[ECO "B50"]
[WhiteElo "1647"]
[BlackElo "1930"]
[Annotator "NA"]
[PlyCount "181"]
[EventDate "2019.01.20"]
[EventType "swiss"]
[EventCountry "TUR"]
[SourceTitle "playchess.com"]
[Source "ChessBase"]
[SourceQuality "1"]
[TimeControl "5400+30"]

1. e4 {[%emt 0:00:30]} c5 {[%emt 0:00:30]} 2. Nf3 {[%emt 0:00:00]} e6 {[%emt 0:00:30]} 3. Nc3 {[%emt 0:00:00]} a6 {[%emt 0:00:30]} 4. a4 {[%emt 0:00:30]} Nc6 {[%emt 0:01:30]} 5. Bc4 {[%emt 0:01:30]} Nf6 {[%emt 0:01:30]} 6. O-O {[%emt 0:00:30]} d6 {[%emt 0:01:30]} 7. d3 {[%emt 0:00:30]} Be7 {[%emt 0:00:00]} 8. Re1 {[%emt 0:01:30]} O-O {[%emt 0:00:00] B50: Sicilian: 2...d6, Miscellaneous} 9. Ne2 {[%emt 0:00:30]} (9. Bb3 Rb8 10. h3 b5 11. axb5 axb5 12. Bf4 b4 13. Ne2 e5 14. Ba4 Nd4 15. Nfxd4 cxd4 16. Bh2 {0-1 (49) Guerrero Forero,R (2125)-Nunez V,G (2150) Ibague 2018}) 9... Ne5 $146 {[%emt 0:01:30]} ({Predecessor:} 9... d5 10. exd5 exd5 11. Bb3 Bg4 12. Ng3 Re8 13. c3 Qc7 14. h3 Bxf3 15. Qxf3 {0-1 (40) Rummer,E (1439)-Thana Balasingam,A (1926) Willingen 2009}) 10. Nxe5 {[%emt 0:01:30]} dxe5 {[%emt 0:00:30]} 11. Bg5 {[%emt 0:01:30]} Qc7 {[%emt 0:01:30]} 12. Nc3 {[%emt 0:00:30]} h6 {[%emt 0:01:30]} 13. Be3 {[%emt 0:01:30]} Nd7 {[%emt 0:04:30]} 14. Qg4 {[%emt 0:00:30]} Nf6 {[%emt 0:00:30]} (14... Kh7 $1 $11) 15. Qg3 {[%emt 0:00:30]} Kh7 {[%emt 0:01:30]} 16. Rf1 {[%emt 0:01:30]} Nh5 {[%emt 0:00:30]} 17. Qf3 {[%emt 0:00:30]} Nf4 {[%emt 0:00:30]} 18. Kh1 {[%emt 0:05:30]} b6 {[%emt 0:08:30]} 19. Ne2 {[%emt 0:04:30]} (19. h4 $5) 19... g5 {[%emt 0:03:30]} 20. g3 {[%emt 0:03:30]} Nxe2 {[%emt 0:06:30]} 21. Qxe2 {[%emt 0:00:00]} f5 {[%emt 0:00:30]} 22. f3 {[%emt 0:03:00]} f4 {[%emt 0:05:30]} 23. Bd2 {[%emt 0:01:30]} Bd7 {[%emt 0:01:30]} 24. Qg2 {[%emt 0:00:30]} b5 {[%emt 0:00:30]} 25. Ba2 {[%emt 0:07:30]} Rad8 {[%emt 0:05:30]} 26. Rg1 {[%emt 0:01:30]} c4 {[%emt 0:08:30]} 27. gxf4 {[%emt 0:03:30]} exf4 {[%emt 0:00:30]} 28. dxc4 {[%emt 0:04:30]} bxc4 {[%emt 0:02:30]} 29. Qe2 {[%emt 0:02:30]} Rc8 {[%emt 0:06:30]} ({Much worse is} 29... Bxa4 $6 30. Bxc4 Qc6 31. Bc3 $14) 30. c3 {[%emt 0:00:30]} e5 {[%emt 0:00:30]} 31. Bb1 $2 {[%emt 0:02:30]} (31. b4 $17 {was called for.}) 31... Bc5 {[%emt 0:03:30]} 32. Rd1 {[%emt 0:02:30]} Be6 {[%emt 0:00:30]} 33. Be1 {[%emt 0:00:30]} Rfd8 {[%emt 0:01:30]} 34. Bc2 {[%emt 0:01:30]} Rxd1 $19 {[%emt 0:02:30]} 35. Rxd1 {[%emt 0:01:30]} Rd8 {[%emt 0:00:00]} 36. Rxd8 {[%emt 0:06:30]} Qxd8 {[%emt 0:01:00]} 37. Qd2 {[%emt 0:01:30]} Qxd2 {[%emt 0:00:30]} 38. Bxd2 {[%emt 0:00:00]} Bh3 {[%emt 0:01:30]} 39. Bd1 {[%emt 0:01:00]} Bf1 {[%emt 0:00:00]} 40. b4 {[%emt 0:04:30]} cxb3 {[%emt 0:01:00]} 41. Bxb3 {[%emt 0:00:00]} Kg6 {[%emt 0:00:30]} 42. Be6 {[%emt 0:01:00]} h5 {[%emt 0:00:30]} 43. Bc8 {[%emt 0:00:30]} Bf2 {[%emt 0:01:30]} 44. Bc1 {[%emt 0:02:30]} h4 {[%emt 0:00:30]} 45. h3 {[%emt 0:00:30]} Kf6 {[%emt 0:00:30]} 46. Ba3 {[%emt 0:00:30]} Bc4 {[%emt 0:05:30]} 47. Kg2 {[%emt 0:00:30]} Be3 {[%emt 0:01:30]} 48. Bb4 {[%emt 0:02:30]} Bb6 {[%emt 0:01:30]} 49. a5 {[%emt 0:03:30]} Bd8 {[%emt 0:00:00]} 50. Kf2 {[%emt 0:01:30]} Be7 {[%emt 0:01:00]} 51. Ke1 {[%emt 0:01:30]} Bxb4 {[%emt 0:02:36]} 52. cxb4 {[%emt 0:00:30]} Ke7 {[%emt 0:00:00]} 53. Kd2 {[%emt 0:00:30]} Kd8 {[%emt 0:00:00]} 54. Kc3 {[%emt 0:01:30]} Bb5 {[%emt 0:00:43]} 55. Be6 {[%emt 0:00:30]} Bf1 {[%emt 0:00:57]} 56. Kb3 {[%emt 0:02:30]} Kc7 {[%emt 0:00:22]} 57. Kc3 {[%emt 0:00:30]} Kc6 {[%emt 0:01:33]} 58. Bf5 {[%emt 0:00:30]} Kd6 {[%emt 0:02:35]} 59. Bg4 {[%emt 0:00:30]} Be2 {[%emt 0:01:21]} 60. Kb3 {[%emt 0:00:30]} Kc6 {[%emt 0:01:09]} 61. Kc3 {[%emt 0:00:30]} Kd6 {[%emt 0:01:29]} 62. Kb3 {[%emt 0:00:30]} Bb5 {[%emt 0:04:55]} 63. Kc3 {[%emt 0:01:30]} Kc7 {[%emt 0:00:22]} 64. Be6 {[%emt 0:00:30]} Bf1 {[%emt 0:01:52]} 65. Kb3 {[%emt 0:00:30]} Be2 {[%emt 0:01:37]} 66. Bg4 {[%emt 0:00:00]} Kd6 {[%emt 0:00:39]} 67. Kc3 {[%emt 0:02:00]} Bb5 {[%emt 0:00:55]} 68. Bf5 {[%emt 0:02:30]} Be8 {[%emt 0:01:17]} 69. Bg4 {[%emt 0:00:30]} Bc6 {[%emt 0:01:37]} 70. Kc4 {[%emt 0:01:08]} Bb5+ {[%emt 0:00:17]} 71. Kc3 {[%emt 0:00:23]} Bd7 {[%emt 0:01:35]} 72. Bf5 {[%emt 0:00:38]} Kc6 {[%emt 0:00:22]} 73. Kc4 {[%emt 0:00:43]} Be8 {[%emt 0:01:00]} 74. Be6 {[%emt 0:00:58]} Bh5 {[%emt 0:00:21]} 75. Bd5+ {[%emt 0:02:16]} Kc7 {[%emt 0:00:51]} 76. b5 {[%emt 0:00:00]} Bxf3 {[%emt 0:00:44]} 77. b6+ {[%emt 0:01:37]} Kb8 {[%emt 0:00:16]} 78. Kc5 {[%emt 0:05:16]} Be2 {[%emt 0:00:25]} 79. Be6 {[%emt 0:01:30]} Bd3 {[%emt 0:00:38]} 80. Bg4 {[%emt 0:01:37]} Bxe4 {[%emt 0:00:14]} 81. Kd6 {[%emt 0:00:17]} f3 {[%emt 0:00:38]} 82. Kxe5 {[%emt 0:00:22]} f2 {[%emt 0:01:21]} 83. Be2 {[%emt 0:00:13]} Bg2 {[%emt 0:00:12]} 84. Bxa6 {[%emt 0:01:34]} g4 {[%emt 0:00:43]} 85. hxg4 {[%emt 0:07:23]} h3 {[%emt 0:00:08]} 86. g5 {[%emt 0:00:28]} h2 {[%emt 0:00:38]} 87. g6 {[%emt 0:00:07]} h1=Q {[%emt 0:00:12]} 88. g7 {[%emt 0:00:30]} Qh5+ {[%emt 0:00:55]} 89. Kf6 {[%emt 0:00:23]} Qh6+ {[%emt 0:00:24]} 90. Kf7 {[%emt 0:00:51]} Bd5+ {[%emt 0:00:30]} 91. Ke7 {[%emt 0:01:34]} 0-1